[Event "71st RUS-ch Higher League 2018"]
[Site "Yaroslavl"]
[Date "2018.06.26"]
[Round "1"]
[White "Tekeyev, Zaur"]
[Black "Esipenko, Andrey"]
[Result "1/2-1/2"]
[ECO "B15"]
[WhiteElo "2407"]
[BlackElo "2599"]
[Annotator "RC"]
[PlyCount "122"]
[EventDate "2018.06.26"]
[EventType "swiss"]
[EventCountry "RUS"]
[SourceTitle "playchess.com"]
[Source "ChessBase"]
[SourceQuality "1"]
[TimeControl "40/5400+30:1800+30"]

1. e4 {[%emt 0:00:00]} c6 {[%emt 0:00:11]} 2. d4 {[%emt 0:00:00]} d5 {[%emt 0:00:07]} 3. Nc3 {[%emt 0:00:00]} dxe4 {[%emt 0:00:06]} 4. Nxe4 {[%emt 0:00:00]} Nf6 {[%emt 0:00:05]} 5. Nxf6+ {[%emt 0:00:00]} exf6 {[%emt 0:00:04]} 6. c3 {[%emt 0:00:07]} Bd6 {[%emt 0:00:04]} 7. Bd3 {[%emt 0:00:13]} O-O {[%emt 0:00:09]} 8. Qc2 {[%emt 0:00:08]} Re8+ {[%emt 0:00:07]} 9. Ne2 {[%emt 0:00:05]} h5 {[%emt 0:00:06]} 10. O-O {[%emt 0:02:44]} h4 {[%emt 0:00:07]} 11. h3 {[%emt 0:04:54]} Nd7 {[%emt 0:00:08]} 12. Bd2 {[%emt 0:04:04]} Nf8 {[%emt 0:00:40]} 13. Rae1 {[%emt 0:00:33]} Bc7 {[%emt 0:00:34]} 14. b3 {[%emt 0:07:20]} Ne6 {[%emt 0:31:42]} 15. f4 {[%emt 0:21:33]} Qd6 {[%emt 0:02:50]} 16. Bh7+ {[%emt 0:34:01]} Kf8 {[%emt 0:05:38]} 17. Be4 {[%emt 0:03:04]} Bd7 {[%emt 0:07:39]} 18. Qd3 {[%emt 0:01:19]} g6 {[%emt 0:04:31]} 19. f5 {[%emt 0:05:40]} Qh2+ {[%emt 0:00:24]} 20. Kf2 {[%emt 0:00:06]} Ng5 {[%emt 0:04:14]} 21. Bxg5 {[%emt 0:03:26]} fxg5 {[%emt 0:00:09]} 22. fxg6 {[%emt 0:03:29]} Kg7 {[%emt 0:02:45]} 23. gxf7 {[%emt 0:03:29]} Re7 {[%emt 0:00:12]} 24. Bh7 {[%emt 0:01:37]} Qd6 {[%emt 0:11:12]} 25. Bg8 {[%emt 0:02:04]} Re6 {[%emt 0:01:04]} 26. Qh7+ {[%emt 0:01:20]} Kf8 {[%emt 0:00:58]} 27. Qh8 {[%emt 0:00:11]} Rd8 {[%emt 0:04:02]} 28. Bh7+ {[%emt 0:01:25]} Kxf7 {[%emt 0:06:20]} 29. Kg1+ {[%emt 0:00:06]} Rf6 {[%emt 0:00:05]} 30. Rxf6+ {[%emt 0:00:04]} Qxf6 {[%emt 0:00:04]} 31. Qxf6+ {[%emt 0:00:07]} Kxf6 {[%emt 0:00:03]} 32. Rf1+ {[%emt 0:00:48]} Kg7 {[%emt 0:00:25]} 33. Be4 {[%emt 0:00:36]} Re8 {[%emt 0:03:25]} 34. Bf3 {[%emt 0:00:26]} Re3 {[%emt 0:08:33]} 35. Kf2 {[%emt 0:00:41]} Rd3 {[%emt 0:02:31]} 36. Ke1 {[%emt 0:00:30]} Ba5 {[%emt 0:01:37]} 37. b4 {[%emt 0:01:01]} Bc7 {[%emt 0:00:21]} 38. Be4 {[%emt 0:00:42]} Re3 {[%emt 0:00:18]} 39. Bf5 {[%emt 0:00:08]} Be8 {[%emt 0:00:17]} 40. Kd2 {[%emt 0:00:00]} Re7 {[%emt 0:00:06]} 41. Rf3 {[%emt 0:13:11]} Bf7 {[%emt 0:00:57]} 42. Bb1 {[%emt 0:05:33]} Bc4 {[%emt 0:02:48]} 43. Bd3 {[%emt 0:02:26]} Be6 {[%emt 0:00:19]} 44. Re3 {[%emt 0:01:36]} Kf6 {[%emt 0:00:43]} 45. Rf3+ {[%emt 0:02:16]} Kg7 {[%emt 0:00:15]} 46. Re3 {[%emt 0:00:46]} Bd6 {[%emt 0:02:35]} 47. Rf3 {[%emt 0:03:29]} Rf7 {[%emt 0:00:29]} 48. Rxf7+ {[%emt 0:06:02]} Kxf7 {[%emt 0:00:40]} 49. Nc1 {[%emt 0:00:38]} Bd5 {[%emt 0:05:31]} 50. Bf1 {[%emt 0:00:25]} Kf6 {[%emt 0:01:09]} 51. Nb3 {[%emt 0:00:35]} g4 {[%emt 0:02:55]} 52. Ke3 {[%emt 0:00:27]} Kg5 {[%emt 0:01:58]} 53. c4 {[%emt 0:00:07]} Bf7 {[%emt 0:01:30]} 54. Nc5 {[%emt 0:00:42]} Bf4+ {[%emt 0:00:09]} 55. Kd3 {[%emt 0:00:33]} b6 {[%emt 0:01:02]} 56. Ne4+ {[%emt 0:00:30]} Kf5 {[%emt 0:00:06]} 57. hxg4+ {[%emt 0:00:36]} Kxg4 {[%emt 0:00:06]} 58. Be2+ {[%emt 0:00:06]} Kf5 {[%emt 0:00:05]} 59. Bf3 {[%emt 0:00:11]} b5 {[%emt 0:02:58]} 60. cxb5 {[%emt 0:00:38]} cxb5 {[%emt 0:00:06]} 61. a3 {[%emt 0:00:46]} Be6 {[%emt 0:04:28]} 1/2-1/2

[Event "71st RUS-ch Higher League 2018"]
[Site "Yaroslavl"]
[Date "2018.06.27"]
[Round "2"]
[White "Najer, Evgeniy"]
[Black "Popov, Ivan"]
[Result "1/2-1/2"]
[ECO "C42"]
[WhiteElo "2668"]
[BlackElo "2608"]
[Annotator "ChessBase"]
[PlyCount "111"]
[EventDate "2018.06.26"]
[EventType "swiss"]
[EventCountry "RUS"]
[SourceTitle "playchess.com"]
[Source "ChessBase"]
[SourceQuality "1"]
[TimeControl "40/5400+30:1800+30"]

1. e4 {[%emt 0:00:00]} e5 {[%emt 0:00:13]} 2. Nf3 {[%emt 0:05:28]} Nf6 {[%emt 0:00:35]} 3. Nxe5 {[%emt 0:03:07]} d6 {[%emt 0:03:45]} 4. Nf3 {[%emt 0:00:43]} Nxe4 {[%emt 0:00:14]} 5. d4 {[%emt 0:03:55]} d5 {[%emt 0:00:17]} 6. Bd3 {[%emt 0:00:09]} Bd6 {[%emt 0:00:13]} 7. O-O {[%emt 0:01:02]} O-O {[%emt 0:00:08]} 8. c4 {[%emt 0:00:03]} c6 {[%emt 0:00:12]} 9. Re1 {[%emt 0:03:57]} Bf5 {[%emt 0:00:36]} 10. Qb3 {[%emt 0:02:17]} Qd7 {[%emt 0:02:52]} 11. Nc3 {[%emt 0:12:00]} Nxc3 {[%emt 0:00:45]} 12. Bxf5 {[%emt 0:00:08]} Qxf5 {[%emt 0:00:08]} 13. Qxb7 {[%emt 0:03:06]} Qd7 {[%emt 0:00:25]} 14. Qxd7 {[%emt 0:01:42]} Nxd7 {[%emt 0:00:03]} 15. c5 {[%emt 0:00:16]} Bxh2+ {[%emt 0:00:29]} 16. Nxh2 {[%emt 0:00:09]} Ne4 {[%emt 0:00:13]} 17. Bf4 {[%emt 0:02:28]} Rfe8 {[%emt 0:04:55]} 18. Ng4 {[%emt 0:04:33]} g5 {[%emt 0:47:07]} 19. Bh2 {[%emt 0:05:55]} Kg7 {[%emt 0:00:17]} 20. f3 {[%emt 0:00:57]} Nef6 {[%emt 0:05:09]} 21. Be5 {[%emt 0:18:00]} h5 {[%emt 0:05:55]} 22. Nxf6 {[%emt 0:03:47]} Nxf6 {[%emt 0:01:14]} 23. f4 {[%emt 0:00:16]} gxf4 {[%emt 0:06:52]} 24. Rf1 {[%emt 0:01:02]} Kg6 {[%emt 0:02:04]} 25. Bxf6 {[%emt 0:00:59]} Kxf6 {[%emt 0:00:02]} 26. Rxf4+ {[%emt 0:00:06]} Kg7 {[%emt 0:00:10]} 27. Raf1 {[%emt 0:02:39]} Re7 {[%emt 0:00:22]} 28. R1f3 {[%emt 0:01:35]} Rb8 {[%emt 0:00:46]} 29. b3 {[%emt 0:00:29]} a5 {[%emt 0:03:16]} 30. Rg3+ {[%emt 0:03:34]} Kf8 {[%emt 0:00:51]} 31. Rg5 {[%emt 0:11:55]} Rb4 {[%emt 0:12:50]} 32. Rxh5 {[%emt 0:00:38]} a4 {[%emt 0:00:10]} 33. Rh8+ {[%emt 0:03:41]} Kg7 {[%emt 0:00:01]} 34. Rc8 {[%emt 0:00:04]} axb3 {[%emt 0:03:27]} 35. axb3 {[%emt 0:00:04]} Re6 {[%emt 0:00:50]} 36. Rc7 {[%emt 0:01:28]} Rxb3 {[%emt 0:00:06]} 37. Rcxf7+ {[%emt 0:02:25]} Kg6 {[%emt 0:00:01]} 38. Rf8 {[%emt 0:02:50]} Kg7 {[%emt 0:00:27]} 39. R8f7+ {[%emt 0:01:08]} Kg6 {[%emt 0:00:01]} 40. Rf8 {[%emt 0:00:00]} Kg7 {[%emt 0:00:30]} 41. R4f7+ {[%emt 0:16:37]} Kg6 {[%emt 0:00:13]} 42. Rd7 {[%emt 0:07:42]} Re4 {[%emt 0:02:28]} 43. Rd6+ {[%emt 0:03:17]} Kg5 {[%emt 0:00:23]} 44. Rxc6 {[%emt 0:00:44]} Rb1+ {[%emt 0:04:14]} 45. Rf1 {[%emt 0:01:03]} Rxf1+ {[%emt 0:00:08]} 46. Kxf1 {[%emt 0:00:03]} Rxd4 {[%emt 0:00:12]} 47. Ke2 {[%emt 0:02:04]} Rc4 {[%emt 0:01:00]} 48. Rc8 {[%emt 0:00:50]} Rc3 {[%emt 0:01:45]} 49. c6 {[%emt 0:00:31]} Kg6 {[%emt 0:00:26]} 50. Kd2 {[%emt 0:01:28]} d4 {[%emt 0:00:08]} 51. g4 {[%emt 0:00:11]} Kf7 {[%emt 0:00:33]} 52. Ke2 {[%emt 0:01:18]} Kg7 {[%emt 0:00:15]} 53. Kd1 {[%emt 0:00:07]} Rd3+ {[%emt 0:00:33]} 54. Kc2 {[%emt 0:00:35]} Rc3+ {[%emt 0:00:06]} 55. Kd2 {[%emt 0:00:06]} Kf7 {[%emt 0:00:04]} 56. g5 {[%emt 0:00:15]} 1/2-1/2

[Event "71st RUS-ch Higher League 2018"]
[Site "Yaroslavl"]
[Date "2018.06.27"]
[Round "2"]
[White "Romanov, Evgeny"]
[Black "Lobanov, Sergei"]
[Result "1/2-1/2"]
[ECO "E09"]
[WhiteElo "2628"]
[BlackElo "2521"]
[Annotator "ChessBase"]
[PlyCount "72"]
[EventDate "2018.06.26"]
[EventType "swiss"]
[EventCountry "RUS"]
[SourceTitle "playchess.com"]
[Source "ChessBase"]
[SourceQuality "1"]
[TimeControl "40/5400+30:1800+30"]

1. d4 {[%emt 0:03:52]} d5 {[%emt 0:00:09]} 2. c4 {[%emt 0:00:07]} c6 {[%emt 0:00:04]} 3. Nf3 {[%emt 0:00:06]} Nf6 {[%emt 0:00:05]} 4. Qc2 {[%emt 0:00:09]} e6 {[%emt 0:07:48]} 5. Nbd2 {[%emt 0:00:19]} Nbd7 {[%emt 0:00:05]} 6. g3 {[%emt 0:00:42]} Be7 {[%emt 0:02:26]} 7. Bg2 {[%emt 0:00:07]} O-O {[%emt 0:00:05]} 8. O-O {[%emt 0:00:05]} b6 {[%emt 0:01:24]} 9. e4 {[%emt 0:00:25]} Bb7 {[%emt 0:02:09]} 10. e5 {[%emt 0:02:16]} Ne8 {[%emt 0:00:10]} 11. Re1 {[%emt 0:00:53]} Nc7 {[%emt 0:02:45]} 12. b3 {[%emt 0:01:17]} c5 {[%emt 0:02:43]} 13. Bb2 {[%emt 0:01:15]} a5 {[%emt 0:04:43]} 14. Rad1 {[%emt 0:17:02]} a4 {[%emt 0:01:01]} 15. Qb1 {[%emt 0:01:34]} Ra7 {[%emt 0:06:09]} 16. h4 {[%emt 0:16:14]} h6 {[%emt 0:05:00]} 17. Re3 {[%emt 0:01:05]} Qa8 {[%emt 0:07:43]} 18. g4 {[%emt 0:02:04]} b5 19. g5 h5 {[%emt 0:11:22]} 20. cxb5 {[%emt 0:05:41]} axb3 {[%emt 0:05:08]} 21. axb3 {[%emt 0:01:45]} Nxb5 22. g6 Qe8 {[%emt 0:06:45]} 23. Bf1 {[%emt 0:01:21]} Na3 {[%emt 0:02:02]} 24. Bxa3 {[%emt 0:18:48]} Rxa3 {[%emt 0:00:05]} 25. Bb5 {[%emt 0:00:32]} fxg6 {[%emt 0:03:47]} 26. Bxd7 {[%emt 0:04:38]} Qxd7 {[%emt 0:08:52]} 27. Qxg6 {[%emt 0:01:36]} Rf5 {[%emt 0:05:28]} 28. Nf1 {[%emt 0:00:40]} cxd4 {[%emt 0:00:05]} 29. Nxd4 {[%emt 0:15:40]} Rf4 30. Qxe6+ {[%emt 0:00:03]} Qxe6 {[%emt 0:00:36]} 31. Nxe6 Rxh4 {[%emt 0:02:12]} 32. Rg3 {[%emt 0:01:01]} g6 {[%emt 0:06:07]} 33. Nd4 {[%emt 0:01:51]} Bc5 {[%emt 0:04:00]} 34. Ne6 {[%emt 0:01:39]} Be7 {[%emt 0:01:11]} 35. Nd4 {[%emt 0:00:02]} Bc5 {[%emt 0:00:32]} 36. Ne6 {[%emt 0:01:12]} Be7 1/2-1/2

[Event "71st RUS-ch Higher League 2018"]
[Site "Yaroslavl"]
[Date "2018.06.27"]
[Round "2"]
[White "Antipov, Mikhail Al"]
[Black "Sviridov, Valery"]
[Result "0-1"]
[ECO "D70"]
[WhiteElo "2616"]
[BlackElo "2513"]
[Annotator "ChessBase"]
[PlyCount "86"]
[EventDate "2018.06.26"]
[EventType "swiss"]
[EventCountry "RUS"]
[SourceTitle "playchess.com"]
[Source "ChessBase"]
[SourceQuality "1"]
[TimeControl "40/5400+30:1800+30"]

1. d4 {[%emt 0:00:00]} Nf6 {[%emt 0:00:28]} 2. c4 {[%emt 0:00:00]} g6 {[%emt 0:00:30]} 3. Nf3 {[%emt 0:00:00]} Bg7 {[%emt 0:00:12]} 4. Nc3 {[%emt 0:00:00]} d5 {[%emt 0:00:20]} 5. cxd5 {[%emt 0:00:00]} Nxd5 {[%emt 0:00:04]} 6. Na4 {[%emt 0:00:00]} O-O {[%emt 0:02:42]} 7. e4 {[%emt 0:00:03]} Nb6 {[%emt 0:00:05]} 8. Be3 {[%emt 0:00:09]} Nc6 {[%emt 0:09:42]} 9. h3 {[%emt 0:11:05]} f5 {[%emt 0:12:07]} 10. Nxb6 {[%emt 0:31:23]} axb6 {[%emt 0:00:19]} 11. Bc4+ {[%emt 0:00:05]} Kh8 {[%emt 0:01:53]} 12. h4 {[%emt 0:01:39]} f4 {[%emt 0:11:18]} 13. Bd2 {[%emt 0:00:30]} Nxd4 {[%emt 0:02:36]} 14. h5 {[%emt 0:00:46]} Nxf3+ {[%emt 0:01:13]} 15. Qxf3 {[%emt 0:01:12]} g5 {[%emt 0:00:49]} 16. O-O-O {[%emt 0:04:30]} Bg4 {[%emt 0:02:47]} 17. h6 {[%emt 0:06:42]} Bf6 {[%emt 0:00:58]} 18. Qb3 {[%emt 0:18:33]} Bxd1 {[%emt 0:00:19]} 19. Rxd1 {[%emt 0:00:05]} Bd4 {[%emt 0:05:07]} 20. g3 {[%emt 0:06:00]} e5 {[%emt 0:02:53]} 21. gxf4 {[%emt 0:00:06]} gxf4 {[%emt 0:00:19]} 22. Rg1 {[%emt 0:01:41]} Bxf2 {[%emt 0:06:09]} 23. Rg7 {[%emt 0:00:42]} Qd6 {[%emt 0:01:59]} 24. Bc3 {[%emt 0:05:49]} Bd4 {[%emt 0:01:12]} 25. Bxd4 {[%emt 0:00:23]} exd4 {[%emt 0:02:22]} 26. Qh3 {[%emt 0:00:19]} Qc6 {[%emt 0:03:22]} 27. Kd2 {[%emt 0:02:42]} Qxc4 {[%emt 0:10:27]} 28. Qd7 {[%emt 0:00:05]} Qb4+ {[%emt 0:00:07]} 29. Kd3 {[%emt 0:00:03]} Ra3+ {[%emt 0:00:11]} 30. bxa3 {[%emt 0:00:01]} Qc3+ {[%emt 0:00:09]} 31. Ke2 {[%emt 0:00:03]} f3+ {[%emt 0:03:59]} 32. Kd1 {[%emt 0:00:05]} Qd3+ {[%emt 0:01:03]} 33. Kc1 {[%emt 0:00:04]} Qe3+ {[%emt 0:00:34]} 34. Kd1 {[%emt 0:05:09]} Qxe4 {[%emt 0:01:31]} 35. Rg4 {[%emt 0:05:47]} Qb1+ {[%emt 0:00:40]} 36. Kd2 {[%emt 0:00:05]} Qxa2+ {[%emt 0:00:19]} 37. Kd1 {[%emt 0:00:59]} Qb3+ {[%emt 0:00:30]} 38. Kd2 {[%emt 0:00:07]} Qc3+ {[%emt 0:00:10]} 39. Kd1 {[%emt 0:00:04]} Qd3+ {[%emt 0:00:37]} 40. Kc1 {[%emt 0:00:00]} Qxa3+ {[%emt 0:00:21]} 41. Kb1 {[%emt 0:00:30]} Qb3+ {[%emt 0:00:14]} 42. Kc1 {[%emt 0:00:05]} Qe3+ {[%emt 0:00:17]} 43. Kb1 {[%emt 0:00:04]} Qxh6 {[%emt 0:00:14]} 0-1

[Event "71st RUS-ch Higher League 2018"]
[Site "Yaroslavl"]
[Date "2018.06.27"]
[Round "2"]
[White "Kobalia, Mikhail"]
[Black "Sjugirov, Sanan"]
[Result "1/2-1/2"]
[ECO "B90"]
[WhiteElo "2608"]
[BlackElo "2663"]
[Annotator "ChessBase"]
[PlyCount "80"]
[EventDate "2018.06.26"]
[EventType "swiss"]
[EventCountry "RUS"]
[SourceTitle "playchess.com"]
[Source "ChessBase"]
[SourceQuality "1"]
[TimeControl "40/5400+30:1800+30"]

1. e4 {[%emt 0:00:27]} c5 {[%emt 0:02:32]} 2. Nf3 {[%emt 0:00:09]} d6 {[%emt 0:00:11]} 3. d4 {[%emt 0:00:06]} cxd4 {[%emt 0:00:07]} 4. Nxd4 {[%emt 0:00:04]} Nf6 {[%emt 0:00:16]} 5. Nc3 {[%emt 0:00:04]} a6 {[%emt 0:00:15]} 6. Be3 {[%emt 0:00:12]} Ng4 {[%emt 0:00:11]} 7. Bc1 {[%emt 0:00:24]} Nf6 {[%emt 0:00:06]} 8. f3 {[%emt 0:00:09]} e5 {[%emt 0:00:17]} 9. Nb3 {[%emt 0:00:03]} Be6 {[%emt 0:01:11]} 10. Be3 {[%emt 0:00:07]} Be7 {[%emt 0:00:56]} 11. Qd2 {[%emt 0:00:33]} O-O {[%emt 0:00:30]} 12. O-O-O {[%emt 0:00:05]} Nbd7 {[%emt 0:00:20]} 13. g4 {[%emt 0:00:09]} b5 {[%emt 0:00:10]} 14. g5 {[%emt 0:00:03]} b4 {[%emt 0:01:56]} 15. gxf6 {[%emt 0:00:22]} bxc3 {[%emt 0:00:07]} 16. Qxc3 {[%emt 0:00:03]} Nxf6 {[%emt 0:00:18]} 17. Na5 {[%emt 0:00:04]} Rc8 {[%emt 0:05:22]} 18. Nc6 {[%emt 0:00:21]} Qc7 {[%emt 0:00:33]} 19. Nxe7+ {[%emt 0:00:28]} Qxe7 {[%emt 0:00:05]} 20. Qa5 {[%emt 0:00:08]} Rc6 {[%emt 0:00:32]} 21. Kb1 {[%emt 0:00:19]} Rfc8 {[%emt 0:10:22]} 22. Rd2 {[%emt 0:00:57]} Nh5 {[%emt 0:10:06]} 23. Be2 {[%emt 0:11:25]} Nf4 {[%emt 0:15:27]} 24. Bd1 {[%emt 0:05:02]} Qf6 {[%emt 0:09:37]} 25. Rg1 {[%emt 0:02:16]} h6 {[%emt 0:12:19]} 26. c3 {[%emt 0:02:52]} Bc4 {[%emt 0:01:27]} 27. Ka1 {[%emt 0:09:55]} Kh8 {[%emt 0:12:20]} 28. b3 {[%emt 0:17:29]} Be6 {[%emt 0:00:42]} 29. c4 {[%emt 0:01:52]} Ra8 {[%emt 0:03:29]} 30. Bc2 {[%emt 0:02:12]} Bh3 {[%emt 0:02:32]} 31. Rf2 {[%emt 0:06:55]} Be6 {[%emt 0:01:08]} 32. Rd1 {[%emt 0:00:46]} Nh3 {[%emt 0:00:28]} 33. Rff1 {[%emt 0:00:21]} Nf4 {[%emt 0:00:21]} 34. Rf2 {[%emt 0:25:00]} Nh3 {[%emt 0:00:22]} 35. Rff1 {[%emt 0:00:04]} Nf4 {[%emt 0:00:04]} 36. Rf2 {[%emt 0:00:06]} Nh3 {[%emt 0:00:05]} 37. Rff1 {[%emt 0:00:03]} Nf4 {[%emt 0:00:33]} 38. Rf2 {[%emt 0:00:03]} Nh3 {[%emt 0:00:03]} 39. Rff1 {[%emt 0:00:03]} Nf4 {[%emt 0:00:03]} 40. Rf2 {[%emt 0:00:00]} Nh3 {[%emt 0:00:02]} 1/2-1/2

[Event "71st RUS-ch Higher League 2018"]
[Site "Yaroslavl"]
[Date "2018.06.27"]
[Round "2"]
[White "Kokarev, Dmitry"]
[Black "Yanchenko, Roman"]
[Result "1/2-1/2"]
[ECO "C16"]
[WhiteElo "2603"]
[BlackElo "2462"]
[Annotator "ChessBase"]
[PlyCount "83"]
[EventDate "2018.06.26"]
[EventType "swiss"]
[EventCountry "RUS"]
[SourceTitle "playchess.com"]
[Source "ChessBase"]
[SourceQuality "1"]
[TimeControl "40/5400+30:1800+30"]

1. e4 {[%emt 0:00:00]} e6 {[%emt 0:00:07]} 2. d4 {[%emt 0:00:00]} d5 {[%emt 0:00:02]} 3. Nc3 {[%emt 0:00:04]} Bb4 {[%emt 0:00:04]} 4. e5 {[%emt 0:00:11]} Ne7 {[%emt 0:00:06]} 5. a3 {[%emt 0:00:13]} Bxc3+ {[%emt 0:00:04]} 6. bxc3 {[%emt 0:00:08]} b6 {[%emt 0:00:06]} 7. Qg4 {[%emt 0:00:12]} O-O {[%emt 0:00:51]} 8. Bg5 {[%emt 0:02:17]} Qe8 {[%emt 0:01:15]} 9. Bd3 {[%emt 0:04:51]} Nf5 {[%emt 0:03:22]} 10. Ne2 {[%emt 0:10:27]} Ba6 {[%emt 0:02:00]} 11. Bxa6 {[%emt 0:07:34]} Nxa6 {[%emt 0:00:02]} 12. Ng3 {[%emt 0:00:12]} Kh8 {[%emt 0:01:32]} 13. Nxf5 {[%emt 0:06:27]} exf5 {[%emt 0:00:02]} 14. Qxf5 {[%emt 0:00:27]} f6 {[%emt 0:00:15]} 15. Be3 {[%emt 0:00:54]} fxe5 {[%emt 0:00:09]} 16. Qxe5 {[%emt 0:00:45]} Qb5 {[%emt 0:00:56]} 17. Qh5 {[%emt 0:03:16]} Qc4 {[%emt 0:01:12]} 18. Kd2 {[%emt 0:00:27]} Rac8 {[%emt 0:13:19]} 19. Qe2 {[%emt 0:02:52]} Qa4 {[%emt 0:00:01]} 20. Rhb1 {[%emt 0:00:18]} c6 {[%emt 0:00:06]} 21. Ke1 {[%emt 0:03:06]} Nc7 {[%emt 0:02:31]} 22. Rb4 {[%emt 0:05:42]} Qa5 {[%emt 0:00:07]} 23. Kf1 {[%emt 0:00:40]} Nb5 {[%emt 0:00:49]} 24. c4 {[%emt 0:08:02]} Nd6 {[%emt 0:02:55]} 25. cxd5 {[%emt 0:00:22]} cxd5 {[%emt 0:00:10]} 26. Qd3 {[%emt 0:08:00]} Ne4 {[%emt 0:15:13]} 27. Rb3 {[%emt 0:04:19]} Rc4 {[%emt 0:04:10]} 28. f3 {[%emt 0:00:59]} Nd6 {[%emt 0:02:38]} 29. Bd2 {[%emt 0:01:28]} Qa4 {[%emt 0:02:38]} 30. Bb4 {[%emt 0:00:55]} Qc6 {[%emt 0:00:37]} 31. Re1 {[%emt 0:01:37]} a5 {[%emt 0:05:10]} 32. Bxd6 {[%emt 0:01:47]} Qxd6 {[%emt 0:00:02]} 33. h3 {[%emt 0:04:52]} Qc6 {[%emt 0:08:57]} 34. Re2 {[%emt 0:04:44]} a4 {[%emt 0:02:27]} 35. Rb2 {[%emt 0:02:09]} h6 {[%emt 0:08:15]} 36. Re5 {[%emt 0:07:37]} b5 {[%emt 0:08:29]} 37. Kg1 {[%emt 0:02:57]} Rf4 {[%emt 0:00:46]} 38. Rb1 {[%emt 0:02:50]} Rfxd4 {[%emt 0:02:05]} 39. Qe3 {[%emt 0:00:42]} Qg6 {[%emt 0:00:38]} 40. Re6 {[%emt 0:00:00]} Qxc2 {[%emt 0:04:00]} 41. Re1 {[%emt 0:03:51]} Rd1 {[%emt 0:03:39]} 42. Rxh6+ {[%emt 0:00:19]} 1/2-1/2

[Event "71st RUS-ch Higher League 2018"]
[Site "Yaroslavl"]
[Date "2018.06.27"]
[Round "2"]
[White "Esipenko, Andrey"]
[Black "Oganian, Miran"]
[Result "1/2-1/2"]
[ECO "D37"]
[WhiteElo "2599"]
[BlackElo "2432"]
[Annotator "ChessBase"]
[PlyCount "81"]
[EventDate "2018.06.26"]
[EventType "swiss"]
[EventCountry "RUS"]
[SourceTitle "playchess.com"]
[Source "ChessBase"]
[SourceQuality "1"]
[TimeControl "40/5400+30:1800+30"]

1. d4 {[%emt 0:00:00]} Nf6 {[%emt 0:00:17]} 2. c4 {[%emt 0:03:43]} e6 {[%emt 0:00:33]} 3. Nf3 {[%emt 0:00:08]} d5 {[%emt 0:01:02]} 4. Nc3 {[%emt 0:00:07]} dxc4 {[%emt 0:01:02]} 5. e4 {[%emt 0:01:31]} Bb4 {[%emt 0:00:14]} 6. Bxc4 {[%emt 0:01:02]} Nxe4 {[%emt 0:00:28]} 7. O-O {[%emt 0:00:09]} Nxc3 {[%emt 0:00:08]} 8. bxc3 {[%emt 0:00:05]} Be7 {[%emt 0:00:08]} 9. Ne5 {[%emt 0:00:44]} O-O {[%emt 0:00:32]} 10. Qg4 {[%emt 0:00:03]} Nc6 {[%emt 0:00:54]} 11. Re1 {[%emt 0:00:29]} f5 {[%emt 0:02:41]} 12. Qf3 {[%emt 0:00:09]} Nxe5 {[%emt 0:00:36]} 13. Rxe5 {[%emt 0:00:06]} Kh8 {[%emt 0:00:39]} 14. Bf4 {[%emt 0:05:57]} Bd6 {[%emt 0:01:20]} 15. Re3 {[%emt 0:00:05]} Bxf4 {[%emt 0:00:13]} 16. Qxf4 {[%emt 0:00:03]} Rf6 {[%emt 0:00:37]} 17. Rae1 {[%emt 0:02:51]} Qd6 {[%emt 0:00:11]} 18. Qxd6 {[%emt 0:00:07]} cxd6 {[%emt 0:00:05]} 19. f4 {[%emt 0:00:02]} Bd7 {[%emt 0:01:00]} 20. Bxe6 {[%emt 0:00:36]} Bxe6 {[%emt 0:00:17]} 21. Rxe6 {[%emt 0:00:06]} Rxe6 {[%emt 0:00:04]} 22. Rxe6 {[%emt 0:00:06]} Rc8 {[%emt 0:00:19]} 23. Rxd6 {[%emt 0:02:17]} Kg8 {[%emt 0:01:26]} 24. Rd7 {[%emt 0:07:44]} Rxc3 {[%emt 0:03:29]} 25. Rxb7 {[%emt 0:00:25]} Ra3 {[%emt 1:15:52]} 26. d5 {[%emt 0:02:10]} Rxa2 {[%emt 0:03:50]} 27. d6 {[%emt 0:00:11]} Rd2 {[%emt 0:00:17]} 28. d7 {[%emt 0:00:11]} Kf8 {[%emt 0:00:11]} 29. Rxa7 {[%emt 0:00:08]} g6 {[%emt 0:01:13]} 30. h4 {[%emt 0:08:01]} Ke7 {[%emt 0:02:30]} 31. d8=Q+ {[%emt 0:00:16]} Kxd8 {[%emt 0:00:05]} 32. Rxh7 {[%emt 0:00:09]} Rd4 {[%emt 0:02:11]} 33. g3 {[%emt 0:01:25]} Ke8 {[%emt 0:00:11]} 34. Ra7 {[%emt 0:04:00]} Rd2 {[%emt 0:01:24]} 35. Kf1 {[%emt 0:14:36]} Rb2 {[%emt 0:01:02]} 36. h5 {[%emt 0:02:11]} gxh5 {[%emt 0:00:05]} 37. Rh7 {[%emt 0:00:06]} h4 {[%emt 0:00:47]} 38. Rxh4 {[%emt 0:00:05]} Kf7 {[%emt 0:00:13]} 39. Rh6 {[%emt 0:00:09]} Ra2 {[%emt 0:00:51]} 40. Rb6 {[%emt 0:00:00]} Rc2 {[%emt 0:00:18]} 41. Kg1 {[%emt 0:00:29]} 1/2-1/2